[Event "46th GRE-chT Premier 2018"]
[Site "Rio Achaia"]
[Date "2018.07.11"]
[Round "3"]
[White "Zacharia, Aikaterini-Eirini"]
[Black "Bania, Eleni"]
[Result "0-1"]
[ECO "C54"]
[WhiteElo "1234"]
[BlackElo "1349"]
[Annotator "NA"]
[PlyCount "78"]
[EventDate "2018.07.10"]
[EventType "team-tourn"]
[EventCountry "GRE"]
[SourceTitle "playchess.com"]
[Source "ChessBase"]
[SourceQuality "1"]
[TimeControl "40/5400+30:1800+30"]

1. e4 {[%emt 0:00:00]} e5 {[%emt 0:00:00]} 2. Nf3 {[%emt 0:00:00]} Nc6 {[%emt 0:00:00]} 3. Bc4 {[%emt 0:00:00]} Bc5 {[%emt 0:00:00]} 4. c3 {[%emt 0:00:07]} Nf6 {[%emt 0:00:03]} 5. d4 {[%emt 0:01:10]} exd4 {[%emt 0:00:14]} 6. e5 {[%emt 0:00:09]} d5 {[%emt 0:01:33]} 7. Bb5 {[%emt 0:06:12]} Ne4 {[%emt 0:01:31]} 8. cxd4 {[%emt 0:00:20]} Bb4+ {[%emt 0:02:52]} 9. Nbd2 {[%emt 0:07:51]} O-O {[%emt 0:01:05]} 10. O-O {[%emt 0:01:41]} Bg4 {[%emt 0:00:52]} 11. Bxc6 {[%emt 0:22:53]} bxc6 {[%emt 0:07:46]} 12. Qc2 {[%emt 0:07:01]} Nxd2 {[%emt 0:03:20]} 13. Nxd2 {[%emt 0:02:36]} Qd7 {[%emt 0:06:34]} 14. Nb3 {[%emt 0:05:50]} Qe6 {[%emt 0:03:00]} 15. Bd2 {[%emt 0:05:33]} Be7 {[%emt 0:04:14]} 16. Rac1 {[%emt 0:01:33]} Be2 {[%emt 0:13:59]} 17. Rfe1 {[%emt 0:05:54]} Bb5 {[%emt 0:24:37]} 18. Na5 {[%emt 0:02:32]} Qg4 {[%emt 0:02:46]} 19. a4 {[%emt 0:14:17]} Ba6 {[%emt 0:03:58]} 20. Nxc6 {[%emt 0:01:01]} Rfe8 {[%emt 0:01:53]} 21. Nxe7+ {[%emt 0:01:57]} Rxe7 {[%emt 0:00:09]} 22. Qc6 {[%emt 0:01:36]} Qc8 {[%emt 0:04:05]} 23. Ba5 {[%emt 0:04:09]} Bb7 {[%emt 0:00:29]} 24. Qc5 {[%emt 0:01:19]} Qd7 {[%emt 0:01:52]} 25. Qxc7 {[%emt 0:02:31]} Qe8 {[%emt 0:00:52]} 26. Qc5 {[%emt 0:01:37]} h5 {[%emt 0:03:42]} 27. h3 {[%emt 0:00:39]} Rc8 {[%emt 0:01:41]} 28. Qb5 {[%emt 0:02:27]} Bc6 {[%emt 0:01:17]} 29. Qb4 {[%emt 0:00:51]} Rb7 {[%emt 0:01:02]} 30. Qc3 {[%emt 0:00:38]} Qe6 {[%emt 0:00:21]} 31. Kh1 {[%emt 0:00:32]} Bd7 {[%emt 0:00:57]} 32. Qd2 {[%emt 0:00:22]} Rcb8 {[%emt 0:01:05]} 33. Rc2 {[%emt 0:00:23]} Bxa4 {[%emt 0:00:28]} 34. Rc7 {[%emt 0:00:46]} Rxb2 {[%emt 0:01:06]} 35. Qc1 {[%emt 0:00:30]} Rxf2 {[%emt 0:01:56]} 36. Rxa7 {[%emt 0:00:27]} Rbb2 {[%emt 0:00:45]} 37. Ra8+ {[%emt 0:00:20]} Kh7 {[%emt 0:00:07]} 38. Rg1 {[%emt 0:00:35]} Qxh3+ {[%emt 0:00:07]} 39. gxh3 {[%emt 0:00:36]} Rh2# {[%emt 0:00:04]} 0-1

[Event "46th GRE-chT Premier 2018"]
[Site "Rio Achaia"]
[Date "2018.07.11"]
[Round "3"]
[White "Tzachristas, Georgios"]
[Black "Kyriakidis, Anastasios P"]
[Result "1/2-1/2"]
[ECO "B23"]
[WhiteElo "1191"]
[BlackElo "1352"]
[Annotator "NA"]
[PlyCount "104"]
[EventDate "2018.07.10"]
[EventType "team-tourn"]
[EventCountry "GRE"]
[SourceTitle "playchess.com"]
[Source "ChessBase"]
[SourceQuality "1"]
[TimeControl "40/5400+30:1800+30"]

1. e4 {[%emt 0:00:00]} c5 {[%emt 0:00:00]} 2. Nc3 {[%emt 0:00:00]} e6 {[%emt 0:00:00]} 3. f4 {[%emt 0:00:14]} Nc6 {[%emt 0:00:58]} 4. Nf3 {[%emt 0:00:14]} Nge7 {[%emt 0:01:16]} 5. d3 {[%emt 0:02:03]} d5 {[%emt 0:04:34]} 6. Be2 {[%emt 0:02:37]} Qc7 {[%emt 0:03:03]} 7. O-O {[%emt 0:00:39]} d4 {[%emt 0:02:07]} 8. Nb5 {[%emt 0:05:38]} Qb8 {[%emt 0:00:14]} 9. a4 {[%emt 0:04:28]} a6 {[%emt 0:00:17]} 10. Na3 {[%emt 0:00:09]} Ng6 {[%emt 0:02:04]} 11. Nc4 {[%emt 0:04:05]} b5 {[%emt 0:17:21]} 12. axb5 {[%emt 0:02:05]} axb5 {[%emt 0:00:06]} 13. Rxa8 {[%emt 0:00:06]} Qxa8 {[%emt 0:00:05]} 14. Nb6 {[%emt 0:00:14]} Qb8 {[%emt 0:00:07]} 15. Nxc8 {[%emt 0:00:11]} Qxc8 {[%emt 0:00:04]} 16. Qe1 {[%emt 0:02:30]} Be7 {[%emt 0:03:59]} 17. Qg3 {[%emt 0:02:43]} Qb8 {[%emt 0:09:33]} 18. h3 {[%emt 0:16:43]} O-O {[%emt 0:03:05]} 19. h4 {[%emt 0:05:47]} e5 {[%emt 0:06:38]} 20. f5 Nf4 {[%emt 0:01:10]} 21. Bd1 {[%emt 0:02:09]} Kh8 {[%emt 0:17:20]} 22. Nxe5 {[%emt 0:03:47]} Nxg2 {[%emt 0:04:31]} 23. Nxf7+ {[%emt 0:01:22]} Rxf7 {[%emt 0:00:36]} 24. Kxg2 {[%emt 0:00:14]} Qxg3+ 25. Kxg3 {[%emt 0:00:09]} g6 {[%emt 0:11:37]} 26. Be2 {[%emt 0:08:29]} Nb4 {[%emt 0:01:04]} 27. c3 {[%emt 0:02:11]} Nc6 {[%emt 0:00:42]} 28. fxg6 {[%emt 0:00:55]} Rxf1 {[%emt 0:01:56]} 29. Bxf1 {[%emt 0:00:09]} hxg6 {[%emt 0:00:02]} 30. Bf4 {[%emt 0:01:23]} Nd8 {[%emt 0:04:51]} 31. cxd4 {[%emt 0:00:21]} cxd4 {[%emt 0:00:14]} 32. Be5+ {[%emt 0:00:03]} Kg8 {[%emt 0:00:17]} 33. Bxd4 {[%emt 0:00:07]} Nc6 {[%emt 0:00:10]} 34. Bc3 {[%emt 0:01:21]} Bd6+ {[%emt 0:00:20]} 35. Kg4 {[%emt 0:01:08]} Kf7 {[%emt 0:00:21]} 36. Be2 {[%emt 0:03:09]} Ne5+ {[%emt 0:00:21]} 37. Bxe5 {[%emt 0:00:40]} Bxe5 {[%emt 0:00:09]} 38. b3 {[%emt 0:00:17]} b4 {[%emt 0:00:24]} 39. h5 {[%emt 0:07:51]} gxh5+ {[%emt 0:00:27]} 40. Kxh5 {[%emt 0:00:00]} Kf6 {[%emt 0:00:00]} 41. Kg4 {[%emt 0:02:44]} Bd4 {[%emt 0:01:22]} 42. Kf4 {[%emt 0:01:13]} Bc3 {[%emt 0:01:17]} 43. e5+ {[%emt 0:01:45]} Bxe5+ {[%emt 0:00:17]} 44. Ke4 {[%emt 0:00:04]} Bc3 {[%emt 0:00:59]} 45. Kd5 {[%emt 0:00:23]} Ke7 {[%emt 0:00:14]} 46. Kc6 {[%emt 0:01:06]} Kd8 {[%emt 0:00:04]} 47. Kc5 {[%emt 0:00:14]} Bd2 {[%emt 0:00:14]} 48. d4 {[%emt 0:00:18]} Bc3 {[%emt 0:00:11]} 49. d5 {[%emt 0:00:11]} Bd2 {[%emt 0:00:04]} 50. d6 {[%emt 0:00:19]} Bc3 {[%emt 0:00:05]} 51. Kc6 {[%emt 0:00:21]} Bd2 {[%emt 0:00:28]} 52. d7 {[%emt 0:00:20]} Bc3 {[%emt 0:00:05]} 1/2-1/2

[Event "46th GRE-chT Premier 2018"]
[Site "Rio Achaia"]
[Date "2018.07.11"]
[Round "3"]
[White "Karamitanis, Lazaros"]
[Black "Kontopanagos, Ioannis"]
[Result "0-1"]
[ECO "A48"]
[WhiteElo "1159"]
[BlackElo "1440"]
[Annotator "NA"]
[PlyCount "122"]
[EventDate "2018.07.10"]
[EventType "team-tourn"]
[EventCountry "GRE"]
[SourceTitle "playchess.com"]
[Source "ChessBase"]
[SourceQuality "1"]
[TimeControl "40/5400+30:1800+30"]

1. d4 {[%emt 0:00:00]} Nf6 {[%emt 0:00:00]} 2. Nf3 {[%emt 0:00:00]} g6 {[%emt 0:00:00]} 3. Bf4 {[%emt 0:00:00]} d5 {[%emt 0:00:00]} 4. e3 {[%emt 0:00:06]} Bg7 {[%emt 0:00:01]} 5. h3 {[%emt 0:00:07]} O-O {[%emt 0:00:11]} 6. Nbd2 {[%emt 0:00:37]} b6 {[%emt 0:00:29]} 7. Be2 {[%emt 0:00:30]} Bb7 {[%emt 0:00:19]} 8. O-O {[%emt 0:00:38]} Nbd7 {[%emt 0:00:27]} 9. c3 {[%emt 0:00:28]} c5 {[%emt 0:00:41]} 10. Ne5 {[%emt 0:00:37]} Rc8 {[%emt 0:02:51]} 11. Ndf3 {[%emt 0:00:22]} Nxe5 {[%emt 0:02:24]} 12. Nxe5 {[%emt 0:00:14]} Ne4 {[%emt 0:03:42]} 13. Bg4 {[%emt 0:01:49]} e6 {[%emt 0:01:27]} 14. Bf3 {[%emt 0:00:19]} Re8 {[%emt 0:07:11]} 15. Be2 {[%emt 0:00:33]} c4 {[%emt 0:05:08]} 16. Qa4 {[%emt 0:01:46]} a6 {[%emt 0:02:18]} 17. Qd7 {[%emt 0:01:49]} Re7 {[%emt 0:06:56]} 18. Qxd8+ {[%emt 0:01:03]} Rxd8 {[%emt 0:00:04]} 19. f3 {[%emt 0:00:50]} Nd6 {[%emt 0:01:12]} 20. Ng4 {[%emt 0:03:01]} f6 {[%emt 0:02:17]} 21. a4 {[%emt 0:09:45]} Nf5 {[%emt 0:05:51]} 22. Kf2 {[%emt 0:08:14]} h5 {[%emt 0:00:19]} 23. e4 {[%emt 0:04:21]} dxe4 {[%emt 0:01:26]} 24. fxe4 {[%emt 0:00:19]} Bxe4 {[%emt 0:00:45]} 25. Ne3 {[%emt 0:00:17]} Nxe3 {[%emt 0:00:36]} 26. Bxe3 {[%emt 0:00:27]} Bd5 {[%emt 0:00:22]} 27. Bf4 {[%emt 0:01:27]} Kh7 {[%emt 0:06:15]} 28. Kg1 {[%emt 0:00:35]} g5 {[%emt 0:14:24]} 29. Bh2 {[%emt 0:00:27]} Kg6 {[%emt 0:00:44]} 30. Rae1 {[%emt 0:00:37]} b5 {[%emt 0:05:53]} 31. Bd1 {[%emt 0:01:14]} Rb7 {[%emt 0:00:40]} 32. Re2 {[%emt 0:03:53]} b4 {[%emt 0:02:45]} 33. Rc2 {[%emt 0:02:23]} Bf8 {[%emt 0:08:10]} 34. Rcf2 {[%emt 0:01:06]} Be7 {[%emt 0:00:53]} 35. Rc2 {[%emt 0:00:53]} Bd6 {[%emt 0:02:11]} 36. Bxd6 {[%emt 0:02:06]} Rxd6 {[%emt 0:00:04]} 37. Rcf2 {[%emt 0:00:09]} f5 {[%emt 0:08:37]} 38. Bc2 {[%emt 0:00:33]} g4 {[%emt 0:02:00]} 39. hxg4 {[%emt 0:03:55]} hxg4 {[%emt 0:00:05]} 40. Rf4 {[%emt 0:00:00]} Kg5 {[%emt 0:00:00]} 41. R4f2 {[%emt 0:04:56]} b3 {[%emt 0:02:47]} 42. Bb1 {[%emt 0:01:08]} Bc6 {[%emt 0:00:12]} 43. Re2 {[%emt 0:00:59]} Bxa4 {[%emt 0:00:40]} 44. Re5 {[%emt 0:00:45]} Bd7 {[%emt 0:04:40]} 45. Rd1 {[%emt 0:01:56]} Bc6 {[%emt 0:01:46]} 46. Rc5 {[%emt 0:01:17]} Bd5 {[%emt 0:00:13]} 47. g3 {[%emt 0:02:07]} Rh7 {[%emt 0:00:25]} 48. Re1 {[%emt 0:01:32]} Rh1+ {[%emt 0:00:29]} 49. Kf2 {[%emt 0:00:22]} Rh2+ {[%emt 0:00:05]} 50. Kf1 {[%emt 0:00:49]} Rxb2 {[%emt 0:00:33]} 51. Ra5 {[%emt 0:02:41]} Rd7 {[%emt 0:01:05]} 52. Kg1 {[%emt 0:01:50]} Rg2+ {[%emt 0:00:19]} 53. Kf1 {[%emt 0:00:09]} Rh7 {[%emt 0:00:07]} 54. Rxd5 {[%emt 0:01:10]} Rd2 {[%emt 0:00:22]} 55. Rxf5+ {[%emt 0:00:36]} exf5 {[%emt 0:00:07]} 56. Re2 {[%emt 0:00:22]} Rd1+ {[%emt 0:00:28]} 57. Kg2 {[%emt 0:00:18]} Rxb1 {[%emt 0:00:08]} 58. d5 {[%emt 0:00:39]} Rd7 {[%emt 0:00:09]} 59. Rd2 {[%emt 0:00:11]} Rc1 {[%emt 0:00:08]} 60. d6 {[%emt 0:00:32]} Rc2 {[%emt 0:00:04]} 61. Rxc2 {[%emt 0:00:27]} bxc2 {[%emt 0:00:05]} 0-1

[Event "46th GRE-chT Premier 2018"]
[Site "Rio Achaia"]
[Date "2018.07.11"]
[Round "3"]
[White "Isari, Angeliki"]
[Black "Chasouraki, Chrysi"]
[Result "1-0"]
[ECO "B70"]
[WhiteElo "1153"]
[BlackElo "1026"]
[Annotator "NA"]
[PlyCount "53"]
[EventDate "2018.07.10"]
[EventType "team-tourn"]
[EventCountry "GRE"]
[SourceTitle "playchess.com"]
[Source "ChessBase"]
[SourceQuality "1"]
[TimeControl "40/5400+30:1800+30"]

1. e4 {[%emt 0:00:31]} c5 {[%emt 0:00:00]} 2. Nf3 {[%emt 0:00:10]} d6 {[%emt 0:00:07]} 3. d4 {[%emt 0:00:08]} cxd4 {[%emt 0:00:07]} 4. Nxd4 {[%emt 0:00:05]} Nf6 {[%emt 0:00:18]} 5. Nc3 {[%emt 0:00:08]} g6 {[%emt 0:00:09]} 6. Be2 {[%emt 0:00:20]} Bg7 {[%emt 0:00:15]} 7. O-O {[%emt 0:00:37]} O-O {[%emt 0:00:09]} 8. Bg5 {[%emt 0:00:26]} Nc6 {[%emt 0:00:43]} 9. Nb3 {[%emt 0:01:00]} Bd7 {[%emt 0:01:16]} 10. Kh1 {[%emt 0:05:49]} Rc8 {[%emt 0:01:49]} 11. f4 {[%emt 0:02:58]} a6 {[%emt 0:07:42]} 12. a4 {[%emt 0:05:30]} Na5 {[%emt 0:08:07]} 13. f5 {[%emt 0:12:59]} Nc4 {[%emt 0:06:18]} 14. Bxc4 {[%emt 0:12:35]} Rxc4 {[%emt 0:00:09]} 15. fxg6 {[%emt 0:00:21]} fxg6 {[%emt 0:00:22]} 16. Bxf6 {[%emt 0:00:23]} Bxf6 {[%emt 0:00:52]} 17. Qd5+ {[%emt 0:00:36]} e6 {[%emt 0:03:08]} 18. Qxc4 {[%emt 0:01:25]} Be5 {[%emt 0:01:10]} 19. Rxf8+ {[%emt 0:01:05]} Qxf8 {[%emt 0:00:11]} 20. Rf1 {[%emt 0:00:51]} Qh6 {[%emt 0:00:31]} 21. h3 {[%emt 0:02:25]} Qe3 {[%emt 0:00:48]} 22. Qd3 {[%emt 0:02:17]} Qg5 {[%emt 0:00:24]} 23. Na5 {[%emt 0:02:41]} Bc8 {[%emt 0:01:21]} 24. Ne2 {[%emt 0:04:12]} Bxb2 {[%emt 0:03:09]} 25. Qxd6 {[%emt 0:00:46]} Bg7 {[%emt 0:00:11]} 26. Nxb7 {[%emt 0:01:54]} Qh6 {[%emt 0:02:24]} 27. Qd8+ {[%emt 0:01:00]} 1-0

[Event "46th GRE-chT Premier 2018"]
[Site "Rio Achaia"]
[Date "2018.07.11"]
[Round "3"]
[White "Fertaki, Eleftheria"]
[Black "Vitzileou, Fedra"]
[Result "1-0"]
[ECO "B31"]
[WhiteElo "1139"]
[BlackElo "1226"]
[Annotator "NA"]
[PlyCount "69"]
[EventDate "2018.07.10"]
[EventType "team-tourn"]
[EventCountry "GRE"]
[SourceTitle "playchess.com"]
[Source "ChessBase"]
[SourceQuality "1"]
[TimeControl "40/5400+30:1800+30"]

1. e4 {[%emt 0:00:00]} c5 {[%emt 0:00:00]} 2. Nf3 {[%emt 0:00:00]} Nc6 {[%emt 0:00:00]} 3. Bb5 {[%emt 0:00:00]} g6 {[%emt 0:00:03]} 4. d4 {[%emt 0:00:35]} cxd4 {[%emt 0:00:37]} 5. Nxd4 {[%emt 0:00:16]} Bg7 {[%emt 0:00:22]} 6. Nxc6 {[%emt 0:01:46]} bxc6 {[%emt 0:00:52]} 7. Bc4 {[%emt 0:00:15]} Qb6 {[%emt 0:04:52]} 8. Nc3 {[%emt 0:13:14]} d6 {[%emt 0:06:26]} 9. O-O {[%emt 0:05:49]} Nf6 {[%emt 0:01:16]} 10. h3 {[%emt 0:01:39]} O-O {[%emt 0:00:48]} 11. Bb3 {[%emt 0:00:49]} Be6 {[%emt 0:03:33]} 12. Be3 {[%emt 0:02:42]} Qb7 {[%emt 0:03:45]} 13. Re1 {[%emt 0:07:04]} a5 {[%emt 0:03:15]} 14. Qd2 {[%emt 0:03:10]} d5 {[%emt 0:04:44]} 15. Bd4 {[%emt 0:11:20]} dxe4 {[%emt 0:07:43]} 16. Nxe4 {[%emt 0:02:51]} Nxe4 {[%emt 0:02:57]} 17. Rxe4 {[%emt 0:00:17]} Bxb3 {[%emt 0:01:33]} 18. axb3 {[%emt 0:00:23]} Rfd8 {[%emt 0:04:18]} 19. Qe3 {[%emt 0:02:31]} Bxd4 {[%emt 0:05:21]} 20. Rxd4 {[%emt 0:00:18]} Rxd4 {[%emt 0:00:22]} 21. Qxd4 {[%emt 0:00:06]} Qc7 {[%emt 0:04:15]} 22. Qc5 {[%emt 0:00:51]} Kf8 {[%emt 0:00:48]} 23. b4 {[%emt 0:01:05]} a4 {[%emt 0:01:58]} 24. b3 {[%emt 0:06:14]} a3 {[%emt 0:01:22]} 25. b5 {[%emt 0:02:24]} Qa5 {[%emt 0:03:04]} 26. Qxc6 {[%emt 0:00:45]} Rb8 {[%emt 0:00:20]} 27. Qc5 {[%emt 0:02:43]} Rxb5 {[%emt 0:02:07]} 28. Qxa3 {[%emt 0:00:33]} Qc3 {[%emt 0:06:08]} 29. Qc1 {[%emt 0:02:01]} Rc5 {[%emt 0:02:41]} 30. Qh6+ {[%emt 0:01:39]} Kg8 {[%emt 0:01:50]} 31. Ra8+ {[%emt 0:00:46]} Rc8 {[%emt 0:00:10]} 32. Rxc8+ {[%emt 0:00:16]} Qxc8 {[%emt 0:00:04]} 33. Qd2 {[%emt 0:00:48]} Kf8 {[%emt 0:03:47]} 34. Qd4 {[%emt 0:00:52]} Qxc2 {[%emt 0:03:32]} 35. Qh8# {[%emt 0:00:53]} 1-0

[Event "46th GRE-chT Premier 2018"]
[Site "Rio Achaia"]
[Date "2018.07.11"]
[Round "3"]
[White "Golegos, Antonis"]
[Black "Kazakos, Nikolaos"]
[Result "0-1"]
[ECO "C12"]
[WhiteElo "1136"]
[BlackElo "1375"]
[Annotator "NA"]
[PlyCount "88"]
[EventDate "2018.07.10"]
[EventType "team-tourn"]
[EventCountry "GRE"]
[SourceTitle "playchess.com"]
[Source "ChessBase"]
[SourceQuality "1"]
[TimeControl "40/5400+30:1800+30"]

1. e4 {[%emt 0:00:00]} e6 {[%emt 0:00:34]} 2. d4 {[%emt 0:00:00]} d5 {[%emt 0:00:04]} 3. Nc3 {[%emt 0:00:00]} Nf6 {[%emt 0:00:17]} 4. Bg5 {[%emt 0:00:00]} Bb4 {[%emt 0:01:59]} 5. e5 {[%emt 0:01:35]} h6 {[%emt 0:00:09]} 6. exf6 {[%emt 0:02:34]} hxg5 {[%emt 0:00:10]} 7. fxg7 {[%emt 0:00:18]} Rg8 {[%emt 0:00:09]} 8. Qd2 {[%emt 0:03:57]} Rxg7 {[%emt 0:00:37]} 9. O-O-O {[%emt 0:03:13]} Nd7 {[%emt 0:01:36]} 10. g3 {[%emt 0:04:14]} c5 {[%emt 0:01:44]} 11. h4 {[%emt 0:02:27]} Rh7 {[%emt 0:04:09]} 12. h5 {[%emt 0:03:00]} Qf6 {[%emt 0:00:48]} 13. g4 {[%emt 0:03:00]} cxd4 {[%emt 0:04:02]} 14. Qxd4 {[%emt 0:00:22]} Bc5 {[%emt 0:00:39]} 15. Qxf6 {[%emt 0:00:50]} Nxf6 {[%emt 0:00:04]} 16. f3 {[%emt 0:01:24]} a6 {[%emt 0:01:23]} 17. Nh3 {[%emt 0:02:21]} Be3+ {[%emt 0:01:11]} 18. Kb1 {[%emt 0:01:07]} d4 {[%emt 0:03:44]} 19. Ne4 {[%emt 0:00:40]} Nxe4 {[%emt 0:00:35]} 20. fxe4 {[%emt 0:00:20]} e5 {[%emt 0:00:16]} 21. Rd3 {[%emt 0:02:24]} Bxg4 {[%emt 0:00:39]} 22. Rb3 {[%emt 0:03:21]} Ra7 {[%emt 0:01:29]} 23. Nxg5 {[%emt 0:07:21]} Bxg5 {[%emt 0:00:05]} 24. Rg3 {[%emt 0:00:10]} f6 {[%emt 0:06:39]} 25. Rxg4 {[%emt 0:00:29]} b5 {[%emt 0:01:10]} 26. Rg3 {[%emt 0:01:37]} b4 {[%emt 0:01:29]} 27. a3 {[%emt 0:00:36]} a5 {[%emt 0:00:48]} 28. Be2 {[%emt 0:00:31]} Ra8 {[%emt 0:02:06]} 29. Bg4 {[%emt 0:00:36]} Ke7 {[%emt 0:01:51]} 30. Bf5 {[%emt 0:01:45]} Rh6 {[%emt 0:03:11]} 31. Rgh3 {[%emt 0:01:32]} Kd6 {[%emt 0:00:28]} 32. a4 {[%emt 0:01:02]} Ra7 {[%emt 0:00:47]} 33. b3 {[%emt 0:00:24]} Rc7 {[%emt 0:00:20]} 34. R3h2 {[%emt 0:02:48]} Ke7 {[%emt 0:00:21]} 35. Rg2 {[%emt 0:01:43]} Kf8 {[%emt 0:00:49]} 36. Rgh2 {[%emt 0:00:36]} Kg7 {[%emt 0:00:16]} 37. Rg2 {[%emt 0:01:47]} Rh8 {[%emt 0:00:19]} 38. Rh3 {[%emt 0:01:15]} Kh6 {[%emt 0:00:13]} 39. Rg1 {[%emt 0:03:25]} Rb8 {[%emt 0:00:40]} 40. Kb2 {[%emt 0:00:00]} Rb6 {[%emt 0:00:00]} 41. Ka2 {[%emt 0:02:31]} Rxc2+ {[%emt 0:01:36]} 42. Kb1 {[%emt 0:00:33]} Rbc6 {[%emt 0:01:22]} 43. Rhh1 {[%emt 0:00:39]} d3 {[%emt 0:02:16]} 44. Rd1 {[%emt 0:01:30]} d2 {[%emt 0:00:46]} 0-1

[Event "46th GRE-chT Premier 2018"]
[Site "Rio Achaia"]
[Date "2018.07.11"]
[Round "3"]
[White "Magklaras, Panagiotis"]
[Black "Stamatiou, Rodolfos"]
[Result "0-1"]
[ECO "B66"]
[WhiteElo "1131"]
[BlackElo "1950"]
[Annotator "NA"]
[PlyCount "88"]
[EventDate "2018.07.10"]
[EventType "team-tourn"]
[EventCountry "GRE"]
[SourceTitle "playchess.com"]
[Source "ChessBase"]
[SourceQuality "1"]
[TimeControl "40/5400+30:1800+30"]

1. e4 {[%emt 0:00:00]} c5 {[%emt 0:00:00]} 2. Nf3 {[%emt 0:00:00]} Nc6 {[%emt 0:00:00]} 3. d4 {[%emt 0:00:00]} cxd4 {[%emt 0:00:02]} 4. Nxd4 {[%emt 0:00:00]} Nf6 {[%emt 0:00:05]} 5. Nc3 {[%emt 0:00:09]} d6 {[%emt 0:00:20]} 6. Bg5 {[%emt 0:00:33]} e6 {[%emt 0:00:30]} 7. Qd2 {[%emt 0:00:40]} a6 {[%emt 0:00:35]} 8. O-O-O {[%emt 0:01:04]} h6 {[%emt 0:01:30]} 9. Bxf6 {[%emt 0:01:48]} Qxf6 {[%emt 0:00:42]} 10. Kb1 {[%emt 0:01:59]} Qd8 {[%emt 0:06:14]} 11. f4 {[%emt 0:06:49]} Be7 {[%emt 0:02:36]} 12. g4 {[%emt 0:09:12]} Bd7 {[%emt 0:06:11]} 13. h4 {[%emt 0:04:39]} Bxh4 {[%emt 0:10:34]} 14. Nxc6 {[%emt 0:02:48]} Bxc6 {[%emt 0:02:09]} 15. g5 {[%emt 0:00:18]} hxg5 {[%emt 0:07:38]} 16. fxg5 {[%emt 0:00:07]} Ke7 {[%emt 0:08:04]} 17. Nd5+ {[%emt 0:10:09]} Bxd5 {[%emt 0:12:19]} 18. exd5 {[%emt 0:00:21]} e5 {[%emt 0:02:56]} 19. Qg2 {[%emt 0:05:31]} Qd7 {[%emt 0:12:44]} 20. Bd3 {[%emt 0:11:21]} f6 {[%emt 0:09:09]} 21. gxf6+ {[%emt 0:13:47]} Bxf6 {[%emt 0:00:08]} 22. Rdf1 {[%emt 0:00:17]} Rxh1 {[%emt 0:02:39]} 23. Rxh1 {[%emt 0:02:06]} Rf8 {[%emt 0:04:14]} 24. Rf1 {[%emt 0:02:34]} Kd8 {[%emt 0:02:40]} 25. Bf5 {[%emt 0:02:49]} Qb5 {[%emt 0:02:07]} 26. Bd3 {[%emt 0:04:02]} Qc5 {[%emt 0:02:17]} 27. a3 {[%emt 0:02:42]} Qd4 {[%emt 0:01:27]} 28. Qe4 {[%emt 0:01:10]} Qxe4 {[%emt 0:00:12]} 29. Bxe4 {[%emt 0:00:07]} Rh8 {[%emt 0:00:29]} 30. Rh1 {[%emt 0:00:51]} Rxh1+ {[%emt 0:00:51]} 31. Bxh1 {[%emt 0:00:14]} Bg5 {[%emt 0:00:17]} 32. c4 {[%emt 0:00:46]} Ke7 {[%emt 0:01:06]} 33. Be4 {[%emt 0:01:41]} Kf6 {[%emt 0:00:28]} 34. Kc2 {[%emt 0:00:32]} Be3 {[%emt 0:00:52]} 35. b3 {[%emt 0:00:29]} g5 {[%emt 0:01:31]} 36. Kd3 {[%emt 0:00:12]} Bd4 {[%emt 0:00:35]} 37. Bh7 {[%emt 0:01:31]} g4 {[%emt 0:01:33]} 38. Ke4 {[%emt 0:00:36]} Kg5 {[%emt 0:00:23]} 39. Bf5 {[%emt 0:01:55]} b6 {[%emt 0:00:38]} 40. Bc8 {[%emt 0:00:00]} a5 {[%emt 0:00:00]} 41. c5 {[%emt 0:03:57]} Bxc5 {[%emt 0:02:20]} 42. a4 {[%emt 0:00:04]} Kh4 {[%emt 0:02:47]} 43. Kd3 {[%emt 0:02:06]} g3 {[%emt 0:01:02]} 44. Ke2 {[%emt 0:05:03]} g2 {[%emt 0:00:13]} 0-1